[Event "14th Margaryan Memorial-IM 2024"]
[Site "Yerevan"]
[Date "2024.01.11"]
[Round "4.6"]
[White "Zakaryan, David"]
[Black "Ambartsumian, Tyhran"]
[Result "1/2-1/2"]
[ECO "C47"]
[WhiteElo "2299"]
[BlackElo "2224"]
[Annotator "RC"]
[PlyCount "140"]
[EventDate "2024.01.08"]
[EventType "tourn"]
[EventCountry "ARM"]
[SourceTitle "playchess.com"]
[Source "ChessBase"]
[SourceQuality "1"]
[TimeControl "40/5400+30:1800+30"]

1. e4 {[%emt 0:00:05]} e5 {[%emt 0:00:11]} 2. Nf3 {[%emt 0:00:05]} Nc6 {[%emt 0:00:04]} 3. d4 {[%emt 0:00:04]} exd4 {[%emt 0:00:09]} 4. Nxd4 {[%emt 0:00:01]} Nf6 {[%emt 0:00:14]} 5. Nc3 {[%emt 0:00:38]} Bb4 {[%emt 0:00:08]} 6. Nxc6 {[%emt 0:00:04]} bxc6 {[%emt 0:00:08]} 7. Bd3 {[%emt 0:00:02]} d5 {[%emt 0:00:12]} 8. exd5 {[%emt 0:00:07]} O-O {[%emt 0:00:57]} 9. O-O {[%emt 0:00:02]} cxd5 {[%emt 0:00:13]} 10. h3 {[%emt 0:00:05]} c6 {[%emt 0:00:09]} 11. Qf3 {[%emt 0:00:04]} Rb8 {[%emt 0:00:06]} 12. Bf4 {[%emt 0:00:44]} Bd6 {[%emt 0:00:07]} 13. b3 {[%emt 0:00:08]} Rb4 {[%emt 0:00:04]} 14. Ne2 {[%emt 0:05:29]} c5 {[%emt 0:19:46]} 15. c3 {[%emt 0:00:14]} Rb7 {[%emt 0:03:54]} 16. Rad1 {[%emt 0:01:34]} Re7 {[%emt 0:13:50]} 17. Bg5 {[%emt 0:04:15]} Be5 {[%emt 0:15:05]} 18. Nf4 {[%emt 0:02:39]} d4 {[%emt 0:13:12]} 19. Nh5 {[%emt 0:07:55]} Qd6 {[%emt 0:01:57]} 20. Nxf6+ {[%emt 0:03:05]} Bxf6 {[%emt 0:00:42]} 21. Bxf6 {[%emt 0:00:16]} Qxf6 {[%emt 0:00:24]} 22. Qxf6 {[%emt 0:00:16]} gxf6 {[%emt 0:00:07]} 23. cxd4 {[%emt 0:00:04]} cxd4 {[%emt 0:00:10]} 24. Rfe1 {[%emt 0:03:51]} Rxe1+ {[%emt 0:07:16]} 25. Rxe1 {[%emt 0:00:02]} Be6 {[%emt 0:00:15]} 26. Rc1 {[%emt 0:04:58]} a5 {[%emt 0:01:54]} 27. Rc6 {[%emt 0:00:54]} Rd8 {[%emt 0:06:01]} 28. Kf1 {[%emt 0:00:25]} Rd5 {[%emt 0:02:04]} 29. Bc4 {[%emt 0:04:21]} Re5 {[%emt 0:01:45]} 30. Rd6 {[%emt 0:04:43]} Bxc4+ {[%emt 0:06:32]} 31. bxc4 {[%emt 0:00:01]} Re4 {[%emt 0:00:11]} 32. c5 {[%emt 0:04:08]} d3 {[%emt 0:03:16]} 33. Rxd3 {[%emt 0:00:51]} Rc4 {[%emt 0:00:01]} 34. Rd5 {[%emt 0:00:00]} Kf8 {[%emt 0:01:48]} 35. Ke2 {[%emt 0:02:04]} Ke7 {[%emt 0:00:06]} 36. Kd3 {[%emt 0:00:18]} Rc1 {[%emt 0:00:06]} 37. c6 {[%emt 0:01:05]} Rxc6 {[%emt 0:00:17]} 38. Rxa5 {[%emt 0:00:04]} Rc1 {[%emt 0:00:07]} 39. Rb5 {[%emt 0:01:55]} Rg1 {[%emt 0:01:49]} 40. g3 {[%emt 0:00:00]} Ra1 {[%emt 0:00:00]} 41. Rb2 {[%emt 0:15:18]} f5 {[%emt 0:17:41]} 42. Kc4 {[%emt 0:01:28]} f4 {[%emt 0:00:31]} 43. Kb5 {[%emt 0:01:08]} fxg3 {[%emt 0:05:24]} 44. fxg3 {[%emt 0:00:01]} h5 {[%emt 0:00:15]} 45. a4 {[%emt 0:00:36]} Ra3 {[%emt 0:00:05]} 46. a5 {[%emt 0:04:24]} Rxg3 {[%emt 0:00:25]} 47. a6 {[%emt 0:05:07]} Ra3 {[%emt 0:02:04]} 48. Rb4 {[%emt 0:02:16]} Kd6 {[%emt 0:00:47]} 49. Kb6 {[%emt 0:03:16]} Rxh3 {[%emt 0:03:23]} 50. a7 {[%emt 0:00:04]} Ra3 {[%emt 0:00:10]} 51. Rb5 {[%emt 0:00:03]} Rxa7 {[%emt 0:03:16]} 52. Kxa7 {[%emt 0:00:01]} Ke6 {[%emt 0:00:38]} 53. Rxh5 {[%emt 0:00:30]} f5 {[%emt 0:00:05]} 54. Kb6 {[%emt 0:00:03]} Ke5 {[%emt 0:00:05]} 55. Kc5 {[%emt 0:00:09]} Ke4 {[%emt 0:00:05]} 56. Rh8 {[%emt 0:00:11]} f4 {[%emt 0:00:05]} 57. Re8+ {[%emt 0:00:07]} Kd3 {[%emt 0:00:16]} 58. Rf8 {[%emt 0:04:30]} Ke3 {[%emt 0:00:12]} 59. Re8+ {[%emt 0:05:46]} Kd3 {[%emt 0:00:10]} 60. Rd8+ {[%emt 0:01:10]} Ke3 {[%emt 0:00:54]} 61. Kc4 {[%emt 0:01:46]} f3 {[%emt 0:00:15]} 62. Re8+ {[%emt 0:00:06]} Kd2 {[%emt 0:00:07]} 63. Rf8 {[%emt 0:00:09]} Ke3 {[%emt 0:00:20]} 64. Re8+ {[%emt 0:00:24]} Kd2 {[%emt 0:00:14]} 65. Rd8+ {[%emt 0:00:25]} Ke3 {[%emt 0:00:23]} 66. Kc3 {[%emt 0:00:04]} f2 {[%emt 0:00:06]} 67. Re8+ {[%emt 0:00:07]} Kf3 {[%emt 0:00:05]} 68. Kd2 {[%emt 0:00:14]} f1=Q {[%emt 0:00:07]} 69. Rf8+ {[%emt 0:00:03]} Kg2 {[%emt 0:00:07]} 70. Rxf1 {[%emt 0:00:02]} Kxf1 {[%emt 0:00:06]} 1/2-1/2

[Event "14th Margaryan Memorial-IM 2024"]
[Site "Yerevan"]
[Date "2024.01.11"]
[Round "4.7"]
[White "Putrenko, Kirill"]
[Black "Rostomyan, Mikayel"]
[Result "1-0"]
[ECO "E52"]
[WhiteElo "2353"]
[BlackElo "2294"]
[Annotator "RC"]
[PlyCount "69"]
[EventDate "2024.01.08"]
[EventType "tourn"]
[EventCountry "ARM"]
[SourceTitle "playchess.com"]
[Source "ChessBase"]
[SourceQuality "1"]
[TimeControl "40/5400+30:1800+30"]

1. d4 {[%emt 0:00:03]} Nf6 {[%emt 0:00:11]} 2. c4 {[%emt 0:00:08]} e6 {[%emt 0:00:10]} 3. Nc3 {[%emt 0:00:07]} Bb4 {[%emt 0:00:20]} 4. e3 {[%emt 0:00:07]} O-O {[%emt 0:00:57]} 5. Bd2 {[%emt 0:00:14]} d5 {[%emt 0:02:47]} 6. Nf3 {[%emt 0:01:20]} b6 {[%emt 0:00:43]} 7. cxd5 {[%emt 0:00:21]} exd5 {[%emt 0:00:19]} 8. Rc1 {[%emt 0:01:28]} Bb7 {[%emt 0:01:34]} 9. Bd3 {[%emt 0:00:25]} Nbd7 {[%emt 0:02:22]} 10. O-O {[%emt 0:05:07]} a6 {[%emt 0:02:52]} 11. Ne5 {[%emt 0:00:30]} Bd6 {[%emt 0:03:00]} 12. f4 {[%emt 0:00:21]} c5 {[%emt 0:00:26]} 13. Qf3 {[%emt 0:15:33]} b5 {[%emt 0:03:49]} 14. Qh3 {[%emt 0:05:13]} Nb6 {[%emt 0:10:11]} 15. dxc5 {[%emt 0:31:45]} Bxc5 {[%emt 0:00:13]} 16. Nxb5 {[%emt 0:04:33]} axb5 {[%emt 0:13:44]} 17. Rxc5 {[%emt 0:00:07]} Ne4 {[%emt 0:01:51]} 18. Bb4 {[%emt 0:03:40]} Re8 {[%emt 0:06:02]} 19. Bxb5 {[%emt 0:07:35]} Nxc5 {[%emt 0:01:10]} 20. Bxe8 {[%emt 0:00:25]} Qxe8 {[%emt 0:00:14]} 21. Bxc5 {[%emt 0:00:02]} Nc4 {[%emt 0:00:35]} 22. Nxc4 {[%emt 0:04:41]} dxc4 {[%emt 0:00:08]} 23. a3 {[%emt 0:04:55]} Qc6 {[%emt 0:04:13]} 24. Bd4 {[%emt 0:00:22]} Re8 {[%emt 0:00:33]} 25. Qg3 {[%emt 0:01:04]} f6 {[%emt 0:00:12]} 26. h3 {[%emt 0:02:38]} Kf7 {[%emt 0:01:49]} 27. Rd1 {[%emt 0:00:59]} Qe4 {[%emt 0:01:26]} 28. Rd2 {[%emt 0:01:14]} Bc6 {[%emt 0:02:34]} 29. Qg4 {[%emt 0:00:57]} Rd8 {[%emt 0:05:45]} 30. Qe2 {[%emt 0:00:34]} Bd5 {[%emt 0:01:54]} 31. Bc3 {[%emt 0:00:38]} f5 {[%emt 0:05:17]} 32. Be5 {[%emt 0:00:52]} g6 {[%emt 0:01:04]} 33. Kh2 {[%emt 0:00:32]} Ke6 {[%emt 0:01:27]} 34. Rd4 {[%emt 0:01:03]} Qb1 {[%emt 0:00:04]} 35. e4 {[%emt 0:02:26]} 1-0

[Event "14th Margaryan Memorial-IM 2024"]
[Site "Yerevan"]
[Date "2024.01.11"]
[Round "4.8"]
[White "Pashikyan, Rudolf"]
[Black "Gasparyan, Erik R."]
[Result "1/2-1/2"]
[ECO "A17"]
[WhiteElo "2287"]
[BlackElo "2340"]
[Annotator "RC"]
[PlyCount "47"]
[EventDate "2024.01.08"]
[EventType "tourn"]
[EventCountry "ARM"]
[SourceTitle "playchess.com"]
[Source "ChessBase"]
[SourceQuality "1"]
[TimeControl "40/5400+30:1800+30"]

1. Nf3 {[%emt 0:00:07]} Nf6 {[%emt 0:03:01]} 2. c4 {[%emt 0:00:18]} e6 {[%emt 0:00:05]} 3. Nc3 {[%emt 0:00:14]} Bb4 {[%emt 0:00:45]} 4. Qc2 {[%emt 0:01:30]} d5 {[%emt 0:08:10]} 5. e3 {[%emt 0:10:11]} O-O {[%emt 0:08:02]} 6. b3 {[%emt 0:01:59]} b6 {[%emt 0:19:51]} 7. Bb2 {[%emt 0:07:46]} Bb7 {[%emt 0:01:28]} 8. Be2 {[%emt 0:01:23]} dxc4 {[%emt 0:02:29]} 9. bxc4 {[%emt 1:11:32]} c5 {[%emt 0:01:28]} 10. O-O {[%emt 0:00:00]} Qe7 {[%emt 0:00:17]} 11. a3 {[%emt 0:00:00]} Ba5 {[%emt 0:00:10]} 12. Na2 {[%emt 0:00:00]} Rd8 {[%emt 0:19:53]} 13. Nc1 {[%emt 0:00:00]} Bc6 {[%emt 0:01:24]} 14. Rd1 {[%emt 0:00:00]} Nbd7 {[%emt 0:01:17]} 15. Ne5 {[%emt 0:00:00]} Nxe5 {[%emt 0:00:24]} 16. Bxe5 {[%emt 0:00:00]} Ng4 {[%emt 0:07:16]} 17. Bg3 {[%emt 0:00:00]} h5 {[%emt 0:01:53]} 18. Nb3 {[%emt 0:00:00]} Ba4 {[%emt 0:00:45]} 19. Qb2 {[%emt 0:05:00]} Bxb3 {[%emt 0:04:28]} 20. Qxb3 {[%emt 0:00:00]} Rxd2 {[%emt 0:00:07]} 21. Rxd2 {[%emt 0:00:00]} Bxd2 {[%emt 0:00:06]} 22. Rd1 {[%emt 0:00:00]} Rd8 {[%emt 0:00:41]} 23. Qc2 {[%emt 0:00:00]} Ba5 {[%emt 0:02:36]} 24. h3 {[%emt 0:00:00]} 1/2-1/2

[Event "14th Margaryan Memorial-IM 2024"]
[Site "Yerevan"]
[Date "2024.01.11"]
[Round "4.9"]
[White "Lomsadze, Davit"]
[Black "Hayrapetyan, Edgar"]
[Result "0-1"]
[ECO "A36"]
[WhiteElo "2253"]
[BlackElo "2233"]
[Annotator "TA"]
[PlyCount "64"]
[EventDate "2024.01.08"]
[EventType "tourn"]
[EventCountry "ARM"]
[SourceTitle "playchess.com"]
[Source "ChessBase"]
[SourceQuality "1"]
[TimeControl "40/5400+30:1800+30"]

{[%evp 20,64,0,0,0,0,20,-11,0,-21,-12,0,-19,-29,-39,-32,0,0,0,-7,-14,-54,-45,-71,-74,-119,-120,-121,-123,-352,-339,-571,-546,-889,-906,-920,-605,-896,-885,-912,-884,-29960,-29963,-29962,-29962,-5314,-5306]} 1. e4 {[%emt 0:00:02]} c5 {[%emt 0:00:09]} 2. c4 {[%emt 0:00:09]} Nc6 {[%emt 0:06:50]} 3. Nc3 {[%emt 0:00:18]} g6 {[%emt 0:04:32]} 4. g3 {[%emt 0:00:16]} Bg7 {[%emt 0:00:20]} 5. Bg2 {[%emt 0:00:02]} d6 {[%emt 0:03:41]} 6. Nge2 {[%emt 0:00:07]} e6 {[%emt 0:04:33]} 7. O-O {[%emt 0:00:14]} Nge7 {[%emt 0:00:03][%cal Bg8e7,Be7c6,Bc6d4][%mdl 32]} 8. d3 {[%emt 0:00:13]} O-O {[%emt 0:01:20]} 9. Be3 {[%emt 0:00:04]} Nd4 {[%emt 0:03:49]} 10. Rb1 {[%emt 0:00:09]} Nec6 {[%emt 0:06:19]} 11. a3 {[%emt 0:00:29]} Rb8 {[%emt 0:15:01]} 12. b4 {[%emt 0:01:01]} b6 {[%emt 0:00:30]} 13. f4 {[%emt 0:00:42]} f5 {[%emt 0:04:59] The position is equal.} 14. Bf2 {[%emt 0:07:56]} Bb7 {[%emt 0:05:38]} 15. Nxd4 {[%emt 0:10:21]} (15. exf5 {seems wilder.} Nxf5 16. Ne4 Ncd4 17. Nxd4 Bxd4 18. Qe2) 15... Nxd4 {[%emt 0:02:56]} 16. exf5 {[%emt 0:03:07]} Bxg2 {[%emt 0:01:26]} 17. Kxg2 {[%emt 0:01:24] [#] aiming for fxg6.} gxf5 {[%emt 0:00:39]} 18. Bxd4 {[%emt 0:02:31]} cxd4 {[%emt 0:00:23]} 19. Ne2 {[%emt 0:00:48]} e5 {[%emt 0:01:08]} 20. Ng1 {[%emt 0:05:57]} e4 {[%emt 0:05:36] Inhibits Qf3.} 21. dxe4 {[%emt 0:00:22]} fxe4 {[%emt 0:00:02] Strongly threatening ...Qc8.} 22. Qh5 {[%emt 0:00:10] [#]} d5 $1 {[%emt 0:02:39][%mdl 512]} 23. cxd5 {[%emt 0:00:14]} Qd7 {[%emt 0:01:07] Hoping for ...d3.} 24. g4 $2 {[%emt 0:05:36] White does not recover from this.} (24. Rfe1 $17 {keeps fighting.} Rf5 25. Qd1) 24... d3 $19 {[%emt 0:03:24]} 25. Nh3 $2 {[%emt 0:01:20]} (25. Rbd1 {was the only chance.} Qb5 26. d6) 25... e3 {[%emt 0:06:21]} 26. Rf3 {[%emt 0:00:02][%cal Oh3g5]} Rbe8 {[%emt 0:00:07] ...d2 is the strong threat.} 27. Ng5 {[%emt 0:01:51]} h6 {[%emt 0:00:05] Active counter play!} 28. Ne6 {[%emt 0:00:37]} Rxe6 {[%emt 0:00:05]} 29. dxe6 {[%emt 0:00:03]} Qxe6 {[%emt 0:00:04] And now ...e2 would win.} 30. Rg1 {[%emt 0:13:45]} e2 {[%emt 0:01:48]} 31. Rxd3 {[%emt 0:04:38]} Qe4+ {[%emt 0:00:12]} 32. Rf3 {[%emt 0:00:05]} Rxf4 {[%emt 0:00:11] Weighted Error Value: White=0.96/Black=0.03 (flawless) .  Loses game:     	White=1     	---        Mistake:       	White=1     	---        Inaccurate:     	White=5     	Black=1      OK:         	White=2     	Black=7      Best:        	---       	Black=2      Brilliant:      	---       	Black=1} ({Less strong is} 32... e1=B 33. Qb5 $17) 0-1

[Event "14th Margaryan Memorial-IM 2024"]
[Site "Yerevan"]
[Date "2024.01.11"]
[Round "4.10"]
[White "Kaiyrbekov, Rustam"]
[Black "Sagradov Sahakyan, Alexander"]
[Result "1/2-1/2"]
[ECO "D02"]
[WhiteElo "2295"]
[BlackElo "1423"]
[Annotator "RC"]
[PlyCount "101"]
[EventDate "2024.01.08"]
[EventType "tourn"]
[EventCountry "ARM"]
[SourceTitle "playchess.com"]
[Source "ChessBase"]
[SourceQuality "1"]
[TimeControl "40/5400+30:1800+30"]

1. d4 {[%emt 0:00:03]} Nf6 {[%emt 0:00:05]} 2. Nf3 {[%emt 0:00:02]} d5 {[%emt 0:00:10]} 3. Bf4 {[%emt 0:00:10]} c5 {[%emt 0:00:06]} 4. c3 {[%emt 0:01:07]} Qb6 {[%emt 0:04:04]} 5. Qb3 {[%emt 0:01:10]} Nc6 {[%emt 0:00:48]} 6. e3 {[%emt 0:02:03]} c4 {[%emt 0:01:15]} 7. Qxb6 {[%emt 0:01:12]} axb6 {[%emt 0:00:02]} 8. Na3 {[%emt 0:09:43]} Ra5 {[%emt 0:24:30]} 9. Bc7 {[%emt 0:03:44]} e6 {[%emt 0:05:01]} 10. Nc2 {[%emt 0:02:42]} Kd7 {[%emt 0:13:12]} 11. Bg3 {[%emt 0:00:39]} b5 {[%emt 0:09:10]} 12. a3 {[%emt 0:00:17]} Ne4 {[%emt 0:04:50]} 13. Nd2 {[%emt 0:02:45]} Nxg3 {[%emt 0:00:38]} 14. hxg3 {[%emt 0:00:10]} g6 {[%emt 0:00:45]} 15. f4 {[%emt 0:06:39]} Bg7 {[%emt 0:01:39]} 16. Be2 {[%emt 0:01:45]} h5 {[%emt 0:03:56]} 17. g4 {[%emt 0:01:32]} hxg4 {[%emt 0:00:32]} 18. Rxh8 {[%emt 0:00:35]} Bxh8 {[%emt 0:00:02]} 19. Bxg4 {[%emt 0:00:16]} Ke7 {[%emt 0:00:34]} 20. Kf2 {[%emt 0:02:20]} Bd7 {[%emt 0:00:02]} 21. Bf3 {[%emt 0:07:31]} f5 {[%emt 0:03:54]} 22. Be2 {[%emt 0:08:18]} Ra8 {[%emt 0:00:18]} 23. Nf3 {[%emt 0:01:32]} Bf6 {[%emt 0:00:37]} 24. Ne5 {[%emt 0:01:25]} Nxe5 {[%emt 0:01:54]} 25. dxe5 {[%emt 0:01:02]} Bg7 {[%emt 0:00:01]} 26. g4 {[%emt 0:09:34]} Rh8 {[%emt 0:00:55]} 27. Kg3 {[%emt 0:00:10]} Bf8 {[%emt 0:01:41]} 28. Rb1 {[%emt 0:02:37]} Ke8 {[%emt 0:04:43]} 29. Nd4 {[%emt 0:16:27]} Bc5 {[%emt 0:00:56]} 30. Bf3 {[%emt 0:02:20]} Kf7 {[%emt 0:02:17]} 31. Rg1 {[%emt 0:00:39]} Rh7 {[%emt 0:01:35]} 32. Bg2 {[%emt 0:03:15]} Rh8 {[%emt 0:00:57]} 33. Rf1 {[%emt 0:00:28]} Bxd4 {[%emt 0:00:50]} 34. exd4 {[%emt 0:00:22]} Bc6 {[%emt 0:02:50]} 35. Bf3 {[%emt 0:00:24]} Be8 {[%emt 0:00:39]} 36. Rb1 {[%emt 0:01:22]} Bc6 {[%emt 0:00:17]} 37. Rh1 {[%emt 0:01:39]} Rxh1 {[%emt 0:00:33]} 38. Bxh1 {[%emt 0:00:06]} Kg7 {[%emt 0:00:03]} 39. Kh4 {[%emt 0:00:12]} Kh6 {[%emt 0:00:01]} 40. Bf3 {[%emt 0:00:00]} Be8 {[%emt 0:00:00]} 41. Bd1 {[%emt 0:15:34]} Bc6 {[%emt 0:16:24]} 42. gxf5 {[%emt 0:00:43]} gxf5 {[%emt 0:00:13]} 43. Bh5 {[%emt 0:00:11]} Bd7 {[%emt 0:00:14]} 44. Bf7 {[%emt 0:00:11]} Kg7 {[%emt 0:00:04]} 45. Bh5 {[%emt 0:00:08]} Kh6 {[%emt 0:00:02]} 46. Bd1 {[%emt 0:00:19]} Bc6 {[%emt 0:00:35]} 47. b3 {[%emt 0:04:56]} Be8 {[%emt 0:01:16]} 48. bxc4 {[%emt 0:00:25]} bxc4 {[%emt 0:00:08]} 49. Bc2 {[%emt 0:01:00]} Bd7 {[%emt 0:01:17]} 50. Bd1 {[%emt 0:00:54]} Be8 {[%emt 0:00:06]} 51. Bf3 {[%emt 0:00:06]} 1/2-1/2

[Event "14th Margaryan Memorial-IM 2024"]
[Site "Yerevan"]
[Date "2024.01.12"]
[Round "5.6"]
[White "Sagradov Sahakyan, Alexander"]
[Black "Zakaryan, David"]
[Result "1-0"]
[ECO "A37"]
[WhiteElo "1423"]
[BlackElo "2299"]
[Annotator "RC"]
[PlyCount "33"]
[EventDate "2024.01.08"]
[EventType "tourn"]
[EventCountry "ARM"]
[SourceTitle "playchess.com"]
[Source "ChessBase"]
[SourceQuality "1"]
[TimeControl "40/5400+30:1800+30"]

1. c4 {[%emt 0:00:02]} c5 {[%emt 0:01:44]} 2. g3 {[%emt 0:00:17]} g6 {[%emt 0:00:05]} 3. Bg2 {[%emt 0:00:08]} Bg7 {[%emt 0:00:01]} 4. Nc3 {[%emt 0:00:21]} Nc6 {[%emt 0:00:02]} 5. Nf3 {[%emt 0:00:15]} d6 {[%emt 0:00:06]} 6. O-O {[%emt 0:00:09]} e5 {[%emt 0:01:21]} 7. a3 {[%emt 0:00:07]} Nge7 {[%emt 0:00:24]} 8. b4 {[%emt 0:00:17]} Be6 {[%emt 0:03:26]} 9. Ng5 {[%emt 0:21:59]} Bxc4 {[%emt 0:02:03]} 10. d3 {[%emt 0:00:29]} cxb4 {[%emt 0:00:48]} 11. axb4 {[%emt 0:00:25]} Be6 {[%emt 0:02:16]} 12. Nxe6 {[%emt 0:00:21]} fxe6 {[%emt 0:00:02]} 13. b5 {[%emt 0:00:22]} Na5 {[%emt 0:05:44]} 14. Qa4 {[%emt 0:09:28]} e4 {[%emt 0:07:33]} 15. Nxe4 {[%emt 0:02:28]} Bxa1 {[%emt 0:01:55]} 16. Qxa1 {[%emt 0:00:24]} e5 {[%emt 0:07:02]} 17. Ba3 {[%emt 0:06:21]} 1-0

[Event "14th Margaryan Memorial-IM 2024"]
[Site "Yerevan"]
[Date "2024.01.12"]
[Round "5.7"]
[White "Hayrapetyan, Edgar"]
[Black "Kaiyrbekov, Rustam"]
[Result "1-0"]
[ECO "B30"]
[WhiteElo "2233"]
[BlackElo "2295"]
[Annotator "RC"]
[PlyCount "50"]
[EventDate "2024.01.08"]
[EventType "tourn"]
[EventCountry "ARM"]
[SourceTitle "playchess.com"]
[Source "ChessBase"]
[SourceQuality "1"]
[TimeControl "40/5400+30:1800+30"]

1. e4 {[%emt 0:00:03]} c5 {[%emt 0:00:14]} 2. Nc3 {[%emt 0:00:05]} e6 {[%emt 0:00:45]} 3. Nf3 {[%emt 0:00:18]} Nc6 {[%emt 0:00:12]} 4. Bb5 {[%emt 0:00:21]} Nd4 {[%emt 0:01:56]} 5. Bd3 {[%emt 0:00:32]} Ne7 {[%emt 0:00:55]} 6. O-O {[%emt 0:15:15]} Nec6 {[%emt 0:01:09]} 7. Nxd4 {[%emt 0:05:50]} cxd4 {[%emt 0:00:43]} 8. Ne2 {[%emt 0:00:39]} Be7 {[%emt 0:03:51]} 9. c3 {[%emt 0:05:19]} Qb6 {[%emt 0:03:12]} 10. Qb3 {[%emt 0:04:07]} Bc5 {[%emt 0:05:01]} 11. Qxb6 {[%emt 0:16:46]} Bxb6 {[%emt 0:00:13]} 12. Bb5 {[%emt 0:07:59]} dxc3 {[%emt 0:02:18]} 13. bxc3 {[%emt 0:01:42]} d6 {[%emt 0:07:12]} 14. a4 {[%emt 0:09:23]} Bd7 {[%emt 0:03:02]} 15. d4 {[%emt 0:03:35]} Na5 {[%emt 0:08:42]} 16. Bd3 {[%emt 0:04:28]} Bc6 {[%emt 0:04:51]} 17. Ba3 {[%emt 0:00:59]} d5 {[%emt 0:01:36]} 18. exd5 {[%emt 0:02:22]} exd5 {[%emt 0:07:26]} 19. Ng3 {[%emt 0:02:19]} O-O-O {[%emt 0:20:03]} 20. Nf5 {[%emt 0:00:13]} Kc7 {[%emt 0:17:06]} 21. Nxg7 {[%emt 0:00:33]} Nb3 {[%emt 0:07:31]} 22. Ra2 {[%emt 0:00:39]} Rdg8 {[%emt 0:01:31]} 23. Nf5 {[%emt 0:00:15]} Ba5 {[%emt 0:01:28]} 24. Rb1 {[%emt 0:00:59]} Bxa4 {[%emt 0:00:58]} 25. Bd6+ {[%emt 0:18:19]} Kc8 {[%emt 0:01:05]} 1-0

[Event "14th Margaryan Memorial-IM 2024"]
[Site "Yerevan"]
[Date "2024.01.12"]
[Round "5.8"]
[White "Gasparyan, Erik R."]
[Black "Lomsadze, Davit"]
[Result "1/2-1/2"]
[ECO "C54"]
[WhiteElo "2340"]
[BlackElo "2253"]
[Annotator "RC"]
[PlyCount "73"]
[EventDate "2024.01.08"]
[EventType "tourn"]
[EventCountry "ARM"]
[SourceTitle "playchess.com"]
[Source "ChessBase"]
[SourceQuality "1"]
[TimeControl "40/5400+30:1800+30"]

1. e4 {[%emt 0:00:04]} e5 {[%emt 0:00:02]} 2. Nf3 {[%emt 0:00:07]} Nc6 {[%emt 0:00:01]} 3. Bc4 {[%emt 0:00:20]} Bc5 {[%emt 0:00:05]} 4. c3 {[%emt 0:00:07]} Nf6 {[%emt 0:00:02]} 5. d4 {[%emt 0:00:08]} exd4 {[%emt 0:00:04]} 6. e5 {[%emt 0:00:06]} d5 {[%emt 0:00:04]} 7. Bb5 {[%emt 0:00:05]} Ne4 {[%emt 0:00:04]} 8. cxd4 {[%emt 0:00:03]} Bb6 {[%emt 0:01:29]} 9. Nc3 {[%emt 0:00:09]} Bg4 {[%emt 0:00:04]} 10. Be3 {[%emt 0:02:25]} O-O {[%emt 0:00:03]} 11. h3 {[%emt 0:00:13]} Bf5 {[%emt 0:00:19]} 12. Qb3 {[%emt 0:18:20]} Ne7 {[%emt 0:00:55]} 13. O-O {[%emt 0:04:35]} c6 {[%emt 0:00:20]} 14. Bd3 {[%emt 0:00:13]} Nxc3 {[%emt 0:01:17]} 15. Qxc3 {[%emt 0:00:19]} Qd7 {[%emt 0:01:19]} 16. Nh4 {[%emt 0:01:44]} Bxd3 {[%emt 0:02:12]} 17. Qxd3 {[%emt 0:00:11]} f6 {[%emt 0:00:39]} 18. f4 {[%emt 0:00:48]} fxe5 {[%emt 0:04:40]} 19. dxe5 {[%emt 0:05:26]} c5 {[%emt 0:03:30]} 20. b3 {[%emt 0:00:40]} Qe6 {[%emt 0:00:32]} 21. Rae1 {[%emt 0:02:04]} Rac8 {[%emt 0:04:39]} 22. Kh1 {[%emt 0:03:12]} c4 {[%emt 0:01:56]} 23. bxc4 {[%emt 0:00:06]} dxc4 {[%emt 0:00:15]} 24. Qe4 {[%emt 0:02:16]} Qd5 {[%emt 0:01:59]} 25. Bxb6 {[%emt 0:04:34]} axb6 {[%emt 0:01:01]} 26. Qe3 {[%emt 0:01:15]} Qc5 {[%emt 0:04:26]} 27. Qf3 {[%emt 0:08:02]} g6 {[%emt 0:05:06]} 28. Qg4 {[%emt 0:11:24]} Nf5 {[%emt 0:02:06]} 29. Nxf5 {[%emt 0:00:38]} Rxf5 {[%emt 0:00:03]} 30. Qf3 {[%emt 0:06:00]} Qc6 {[%emt 0:00:46]} 31. Qe3 {[%emt 0:04:34]} Rd8 {[%emt 0:03:19]} 32. Rd1 {[%emt 0:01:25]} Rxd1 {[%emt 0:04:09]} 33. Rxd1 {[%emt 0:00:01]} Qc5 {[%emt 0:00:34]} 34. Qf3 {[%emt 0:04:25]} Qc6 {[%emt 0:00:44]} 35. Qe3 {[%emt 0:02:20]} Qc5 {[%emt 0:00:08]} 36. Qf3 {[%emt 0:06:02]} Qc6 {[%emt 0:00:11]} 37. Qe3 {[%emt 0:01:36]} 1/2-1/2